bitfinex-derivatives/quotes_SOLF0:USTF0_20250823
["timestamp","ask_amount","ask_price","bid_price","bid_amount"]
[1755918241652,1.48,197.66,197.63,4.87152894]
[1755918241948,5.0617,197.64,197.61,131.35]
[1755918242246,5.0617,197.64,197.62,4.87078239]
[1755918242447,0.03493745,197.68,197.64,2.75]
[1755918242649,0.03493745,197.68,197.61,128.6]
[1755918242650,0.03493745,197.68,197.66,2.75]
[1755918243552,0.03493745,197.68,197.67,2.9]
[1755918243952,0.03493745,197.68,197.62,2.9]
[1755918244160,0.03493745,197.68,197.61,128.6]
[1755918244161,0.03493745,197.68,197.63,4.87127944]
[1755918244353,0.03493745,197.68,197.64,7.77127944]
[1755918244554,0.03493745,197.68,197.65,7.77127944]
[1755918244749,0.03493745,197.68,197.63,2.9]
[1755918245056,0.03493745,197.68,197.64,4.87229135]
[1755918245057,1.47,197.67,197.64,4.87229135]
[1755918245256,5.0614,197.65,197.61,131.5]
[1755918245454,5.0614,197.65,197.62,4.87424626]
[1755918245455,1.47,197.65,197.62,4.87424626]
[1755918245654,1.47,197.64,197.63,4.87424626]
[1755918246654,5.0623,197.61,197.59,2.9]
[1755918246860,5.0623,197.61,197.6,9.1675015]
[1755918247457,5.0623,197.61,197.6,9.16998366]
[1755918248060,5.0623,197.61,197.6,11.20996067]
[1755918248257,5.0623,197.61,197.6,6.91883609]
[1755918248559,1.47,197.61,197.52,2.9]
[1755918248761,1.47,197.61,197.53,2.04074004]
[1755918248961,1.47,197.61,197.52,2.9]
[1755918249156,1.47,197.61,197.53,2.04090329]
[1755918249355,1.47,197.61,197.52,2.9]
[1755918249657,0.0338409,197.59,197.53,2.0412173]
[1755918249959,1.47,197.58,197.52,2.9]
[1755918250162,5.064,197.55,197.52,2.9]
[1755918250463,5.064,197.55,197.53,2.9]
[1755918251066,5.0633,197.57,197.53,2.9]
[1755918251762,5.0971564,197.57,197.53,2.9]
[1755918252166,5.0637,197.56,197.53,2.9]
[1755918252468,0.0338564,197.57,197.5,128.48]
[1755918253060,0.0338564,197.57,197.49,2.9]
[1755918253061,1.47,197.54,197.49,2.9]
[1755918253262,0.0338564,197.57,197.46,312.64779612]
[1755918253464,1.47,197.54,197.47,4.94122358]
[1755918253766,5.0645,197.53,197.48,2.04122358]
[1755918253960,1.47,197.59,197.51,2.9]
[1755918254367,5.0638,197.56,197.51,2.9]
[1755918254561,26.7842,197.59,197.52,2.9]
[1755918254863,5.064,197.55,197.52,2.9]
[1755918255165,1.47,197.56,197.46,312.64779612]
[1755918255366,1.47,197.56,197.47,2.04106135]
[1755918255564,1.47,197.56,197.49,2.9]
[1755918255967,0.03245393,197.53,197.49,2.9]
[1755918256161,0.03245393,197.53,197.46,312.64779612]
[1755918256357,0.03245393,197.53,197.52,2.9]
[1755918256763,0.03245393,197.53,197.5,2.9]
[1755918258664,5.09695393,197.53,197.5,2.9]
[1755918258865,0.03245393,197.53,197.47,2.9]
[1755918259074,0.03245393,197.53,197.49,2.9]
[1755918259372,0.03245393,197.53,197.47,2.9]
[1755918259970,0.03245393,197.53,197.46,131.4]
[1755918260168,1.47,197.5,197.46,131.4]
[1755918260471,1.47,197.5,197.43,2.9]
[1755918260673,1.47,197.5,197.44,11.11960967]
[1755918260878,1.47,197.5,197.45,9.08008171]
[1755918261064,1.47,197.53,197.46,7.7050776]
[1755918261266,1.47,197.53,197.47,4.80465769]
[1755918261267,5.0643,197.53,197.47,4.80465769]
[1755918261468,0.03551415,197.49,197.45,0.03667208]
[1755918261764,0.03551415,197.49,197.48,2.9]
[1755918261965,0.03551415,197.49,197.48,11.97804392]
[1755918264372,0.03551415,197.49,197.48,7.70401134]
[1755918265581,0.03551415,197.49,197.48,4.80401134]
[1755918265781,0.03551415,197.49,197.45,0.03667208]
[1755918265979,0.03551415,197.49,197.45,2.93667208]
[1755918266182,1.50551415,197.49,197.45,2.93667208]
[1755918266376,6.57111415,197.49,197.45,2.93667208]
[1755918267480,5.10111415,197.49,197.46,2.9]
[1755918267782,5.10111415,197.49,197.47,2.9]
[1755918268784,0.03551415,197.49,197.45,0.03667208]
[1755918269174,0.03551415,197.49,197.48,2.9]
[1755918269881,0.03551415,197.49,197.45,0.03667208]
[1755918270083,0.03551415,197.49,197.46,7.70662127]
[1755918270281,0.03551415,197.49,197.47,2.9]
[1755918270981,0.03551415,197.49,197.45,2.93667208]
[1755918272084,0.03551415,197.49,197.46,2.9]
[1755918272284,5.10111415,197.49,197.46,2.9]
[1755918272678,6.57111415,197.49,197.45,0.03667208]
[1755918272885,1.50551415,197.49,197.45,0.03667208]
[1755918273281,5.0661,197.47,197.45,0.03667208]
[1755918273487,1.48,197.46,197.38,2.64]
[1755918273687,1.48,197.46,197.39,6.79084069]
[1755918273887,1.48,197.46,197.4,4.75413527]
[1755918274188,1.48,197.46,197.38,2.64]
[1755918274387,25.3295,197.47,197.31,4.22829244]
[1755918274692,1.48,197.46,197.34,2.64]
[1755918274885,1.48,197.46,197.36,2.64]
[1755918274886,0.03410059,197.41,197.36,2.64]
[1755918275088,0.03410059,197.41,197.37,11.06938955]
[1755918275281,0.03410059,197.41,197.4,2.64]
[1755918278276,0.03410059,197.41,197.35,2.64]
[1755918278479,0.03410059,197.41,197.36,4.75448192]
[1755918278688,0.03410059,197.41,197.38,2.64]
[1755918278888,0.03410059,197.41,197.39,2.64]
[1755918279192,5.10150059,197.41,197.35,2.64]
[1755918279383,0.03410059,197.41,197.33,2.64]
[1755918279687,0.03410059,197.41,197.34,6.79303822]
[1755918279890,0.03410059,197.41,197.35,4.75557939]
[1755918280084,0.03410059,197.41,197.33,2.64]
[1755918280382,0.03410059,197.41,197.34,6.79366997]
[1755918280578,0.03410059,197.41,197.35,4.75602045]
[1755918280781,5.0678,197.4,197.33,2.64]
[1755918280981,5.0678,197.4,197.34,6.79368434]
[1755918281177,0.03410059,197.41,197.32,130.0]
[1755918281178,5.068,197.39,197.36,2.64]
[1755918281388,5.068,197.39,197.33,2.64]
[1755918281586,5.068,197.39,197.32,130.0]
[1755918281587,5.068,197.39,197.35,2.64]
[1755918281790,5.068,197.39,197.36,2.64]
[1755918281989,6.58150059,197.41,197.33,2.64]
[1755918282283,6.58150059,197.41,197.34,4.75908757]
[1755918282587,6.58150059,197.41,197.35,4.75908757]
[1755918282780,6.58150059,197.41,197.33,2.64]
[1755918282985,6.58150059,197.41,197.34,4.75782204]
[1755918283184,0.03410059,197.41,197.36,2.64]
[1755918283379,0.03410059,197.41,197.37,2.64]
[1755918283581,0.03410059,197.41,197.39,2.64]
[1755918284189,0.03410059,197.41,197.32,130.88167112]
[1755918284392,0.03410059,197.41,197.39,2.64]
[1755918285386,0.03410059,197.41,197.4,2.64]
[1755918286683,0.03410059,197.41,197.4,7.39958819]
[1755918286883,0.03410059,197.41,197.4,7.39955478]
[1755918287291,0.03410059,197.41,197.4,7.40160401]
[1755918288085,0.03410059,197.41,197.4,9.44292632]
[1755918288291,0.03410059,197.41,197.4,13.73200836]
[1755918289197,0.03410059,197.41,197.4,7.40160401]
[1755918289489,0.03410059,197.41,197.4,13.7369929]
[1755918290997,5.0651,197.51,197.41,2.64]
[1755918291190,1.51,197.52,197.43,2.64]
[1755918291385,1.51,197.52,197.44,4.76160401]
[1755918291591,6.5749,197.52,197.45,7.40160401]
[1755918291892,1.51,197.52,197.45,2.64]
[1755918292599,1.51,197.55,197.46,4.77845465]
[1755918292896,1.51,197.55,197.45,2.64]
[1755918293098,1.51,197.55,197.46,4.78220509]
[1755918293297,1.51,197.55,197.45,2.64]
[1755918293597,5.0654,197.5,197.45,2.64]
[1755918293791,1.51,197.48,197.41,2.64]
[1755918293993,1.51,197.48,197.42,11.13709477]
[1755918294195,32.34035569,197.54,197.43,4.78277324]
[1755918294396,26.8327,197.53,197.41,2.64]
[1755918294595,26.8327,197.53,197.42,11.14106034]
[1755918294894,5.0656,197.49,197.43,7.4243196]
[1755918295090,5.0656,197.49,197.43,2.64]
[1755918295802,5.0656,197.49,197.44,4.78520185]
[1755918296099,5.0656,197.49,197.43,2.64]
[1755918296100,6.5756,197.49,197.45,2.64]
[1755918296299,1.51,197.48,197.42,2.64]
[1755918296502,1.51,197.48,197.43,7.42703623]
[1755918296799,6.5759,197.48,197.44,4.78683926]
[1755918297000,6.5759,197.48,197.43,2.64]
[1755918297300,6.5759,197.48,197.44,4.78847333]
[1755918297594,6.5759,197.48,197.43,2.64]
[1755918297794,1.51,197.47,197.44,4.78847333]
[1755918297995,1.51,197.47,197.43,2.64]
[1755918298196,5.0659,197.48,197.41,2.64]
[1755918298392,5.0659,197.48,197.42,6.84095659]
[1755918298597,6.5759,197.48,197.43,7.429225]
[1755918298799,6.5759,197.48,197.44,2.64]
[1755918299997,1.51,197.48,197.44,2.64]
[1755918300198,25.3213,197.54,197.41,5.0675]
[1755918300199,1.51,197.54,197.45,2.05214756]
[1755918300393,1.51,197.54,197.46,7.43025776]
[1755918300598,1.51,197.54,197.47,4.79025776]
[1755918300793,1.51,197.54,197.48,4.79025776]
[1755918301003,1.51,197.54,197.46,2.64]
[1755918301198,1.51,197.54,197.47,4.78956996]
[1755918301404,25.3174,197.59,197.42,2.64]
[1755918301405,8.52905569,197.56,197.42,2.64]
[1755918301705,1.51,197.55,197.43,4.77168917]
[1755918301894,1.51,197.55,197.44,4.77168917]
[1755918302101,1.51,197.5,197.42,2.64]
[1755918302299,1.51,197.5,197.43,4.77264421]
[1755918302495,1.51,197.5,197.42,2.64]
[1755918302700,1.51,197.5,197.43,4.77294243]
[1755918302901,1.51,197.5,197.38,2.64]
[1755918303104,1.51,197.5,197.39,4.77351245]
[1755918303304,1.51,197.5,197.38,2.64]
[1755918303505,5.0675,197.43,197.38,2.64]
[1755918303808,1.51,197.42,197.38,2.64]
[1755918304700,1.51,197.42,197.33,129.0]
[1755918304701,1.51,197.42,197.33,2.79]
[1755918305310,1.51,197.37,197.29,2.79]
[1755918305611,1.51,197.37,197.3,4.77445939]
[1755918305805,1.51,197.37,197.31,4.77445939]
[1755918306007,6.5792,197.37,197.29,2.79]
[1755918307011,5.0696,197.35,197.29,2.79]
[1755918307310,1.51,197.35,197.25,2.79]
[1755918307510,1.51,197.35,197.26,4.77188074]
[1755918307711,1.51,197.35,197.25,2.79]
[1755918307907,1.51,197.35,197.26,4.77188074]
[1755918308108,1.51,197.35,197.25,2.79]
[1755918308406,1.51,197.35,197.26,4.77285845]
[1755918308612,5.0699,197.34,197.25,2.79]
[1755918311612,1.51,197.33,197.25,2.79]
[1755918312015,5.0703,197.32,197.25,2.79]
[1755918312618,1.51,197.33,197.25,2.79]
[1755918314115,6.5802,197.33,197.25,2.79]
[1755918314316,1.51,197.36,197.27,2.79]
[1755918315010,1.51,197.36,197.18,2.79]
[1755918315210,32.36375569,197.38,197.2,2.79]
[1755918315211,6.5807,197.31,197.2,2.79]
[1755918315419,6.5807,197.31,197.21,6.80240924]
[1755918315619,6.5807,197.31,197.22,7.55258053]
[1755918315916,6.5807,197.31,197.23,4.76258053]
[1755918316116,6.5807,197.31,197.22,2.79]
[1755918316317,6.5807,197.31,197.23,4.76189972]
[1755918316514,6.5807,197.31,197.22,2.79]
[1755918316716,5.07,197.33,197.24,2.79]
[1755918316918,1.51,197.35,197.24,2.79]
[1755918317512,1.51,197.34,197.24,2.79]
[1755918318216,5.071,197.29,197.24,2.79]
[1755918318618,1.51,197.31,197.2,2.79]
[1755918318818,6.5805,197.31,197.22,2.79]
[1755918319015,1.51,197.36,197.24,2.79]
[1755918319620,0.03226072,197.32,197.24,2.79]
[1755918320017,1.51,197.31,197.24,2.79]
[1755918320622,0.03226072,197.32,197.24,2.79]
[1755918324325,1.54226072,197.32,197.24,2.79]
[1755918325324,6.61256072,197.32,197.24,2.79]
[1755918326529,1.54226072,197.32,197.24,2.79]
[1755918327624,5.0709,197.3,197.24,2.79]
[1755918328725,6.61256072,197.32,197.24,2.79]
[1755918329033,0.03226072,197.32,197.24,2.79]
[1755918329828,0.03226072,197.32,197.26,5.0716]
[1755918330022,0.03226072,197.32,197.27,2.79]
[1755918330426,0.03226072,197.32,197.28,2.79]
[1755918331230,1.51,197.43,197.31,2.79]
[1755918331730,7.01905569,197.47,197.3,128.9]
[1755918331731,7.01905569,197.47,197.35,2.79]
[1755918331931,1.54,197.48,197.35,2.79]
[1755918332337,1.54,197.46,197.35,2.79]
[1755918332637,1.54,197.46,197.4,0.03811115]
[1755918332836,1.54,197.47,197.4,0.03811115]
[1755918333329,1.55,197.47,197.4,0.03811115]
[1755918333531,25.3363,197.44,197.4,0.03811115]
[1755918333739,1.55,197.43,197.4,0.03811115]
[1755918334838,1.55,197.41,197.4,1.115e-05]
[1755918335939,5.0678,197.42,197.4,1.115e-05]
[1755918336533,0.03783388,197.43,197.4,1.115e-05]
[1755918337132,0.03783388,197.43,197.42,2.82]
[1755918345942,0.03783388,197.43,197.4,1.115e-05]
[1755918346242,0.03783388,197.43,197.41,2.82]
[1755918348140,0.03783388,197.43,197.4,1.115e-05]
[1755918352045,0.03783388,197.43,197.4,2.82001115]
[1755918352244,0.03783388,197.43,197.4,1.115e-05]
[1755918352446,0.03783388,197.43,197.4,2.82001115]
[1755918352646,0.03783388,197.43,197.4,1.115e-05]
[1755918352945,0.03783388,197.43,197.42,2.82]
[1755918360247,469.64,197.55,197.42,2.82]
[1755918360248,25.3102,197.64,197.43,2.82]
[1755918360444,1.59,197.63,197.5,2.82]
[1755918361338,5.0631,197.6,197.5,2.82]
[1755918361542,1.59,197.59,197.55,0.0375549]
[1755918361743,1.59,197.58,197.55,0.0375549]
[1755918361948,1.59,197.58,197.5,2.82]
[1755918362353,6.6536,197.58,197.55,0.03222085]
[1755918363152,5.064,197.56,197.55,0.03222085]
[1755918363954,6.654,197.56,197.55,0.03222085]
[1755918365657,5.0635,197.58,197.55,0.03222085]
[1755918366649,1.59,197.61,197.57,2.89]
[1755918367154,1.59,197.6,197.55,2.92222085]
[1755918367751,1.59,197.59,197.55,2.92222085]
[1755918367948,1.59,197.58,197.55,0.03222085]
[1755918368151,1.59,197.61,197.55,0.03222085]
[1755918369648,5.064,197.57,197.55,0.03222085]
[1755918369843,26.9026,197.62,197.55,0.03222085]
[1755918370056,1.59,197.62,197.55,0.03222085]
[1755918370448,154.0089,197.65,197.55,0.03222085]
[1755918370449,1.59,197.6,197.55,0.03222085]
[1755918370647,1.59,197.56,197.55,2.085e-05]
[1755918371255,5.0633,197.59,197.56,2.89]
[1755918372452,1.62517898,197.59,197.55,2.085e-05]
[1755918373651,5.0639,197.57,197.55,2.085e-05]
[1755918373844,1.59,197.56,197.55,2.085e-05]
[1755918380455,130.25,197.56,197.55,2.085e-05]
[1755918381258,128.66,197.56,197.55,2.085e-05]
[1755918381458,129.16,197.56,197.55,2.085e-05]
[1755918381653,129.16,197.56,197.46,2.89]
[1755918381857,1.59,197.5,197.38,2.89]
[1755918382059,1.59,197.5,197.39,4.75966691]
[1755918382257,25.3293,197.49,197.35,2.89]
[1755918382557,1.59,197.48,197.37,2.89]
[1755918383663,5.0675,197.43,197.37,2.89]
[1755918384054,0.03313203,197.44,197.37,2.89]
[1755918384260,0.03313203,197.44,197.38,0.03297284]
[1755918384754,0.03313203,197.44,197.39,4.744996]
[1755918384959,0.03313203,197.44,197.43,2.89]
[1755918386664,0.03313203,197.44,197.38,2.92297284]
[1755918387258,5.10033203,197.44,197.38,2.92297284]
[1755918387665,5.0677,197.42,197.38,2.92297284]
[1755918388367,5.0677,197.42,197.38,0.03297284]
[1755918388567,5.0677,197.42,197.39,2.89]
[1755918388962,5.10023203,197.44,197.4,2.89]
[1755918389166,0.03313203,197.44,197.38,0.03297284]
[1755918390667,5.0676,197.42,197.39,2.89]
[1755918390866,5.0676,197.42,197.38,0.03297284]
[1755918391068,0.03313203,197.44,197.38,0.03297284]
[1755918391267,0.03313203,197.44,197.4,2.89]
[1755918392069,5.10023203,197.44,197.4,2.89]
[1755918392270,0.03313203,197.44,197.39,2.89]
[1755918392570,0.03313203,197.44,197.38,0.03297284]
[1755918392870,0.03313203,197.44,197.42,2.89]
[1755918393271,0.03313203,197.44,197.43,2.66]
[1755918394771,342.16,197.56,197.43,3.16]
[1755918395066,342.16,197.56,197.45,2.66]
[1755918395573,5.0647,197.54,197.47,7.7261]
[1755918395771,130.28,197.61,197.47,2.66]
[1755918395969,5.0635,197.58,197.5,5.0653]
[1755918396273,1.62,197.61,197.51,7.36589963]
[1755918396462,1.62,197.61,197.52,4.7055367]
[1755918396663,1.62,197.61,197.51,2.66]
[1755918397164,1.62,197.61,197.48,7.01905569]
[1755918397165,5.0631,197.6,197.55,2.69487899]
[1755918397366,5.0631,197.6,197.56,2.66]
[1755918397570,1.62,197.61,197.56,2.66]
[1755918398772,1.62,197.61,197.57,2.66]
[1755918399271,6.683,197.6,197.55,2.69487899]
[1755918399575,1.62,197.6,197.55,2.69487899]
[1755918400272,1.62,197.6,197.56,2.66]
[1755918400674,5.0634,197.59,197.56,2.66]
[1755918400972,1.62,197.6,197.56,2.66]
[1755918401176,6.6831,197.6,197.56,2.66]
[1755918401577,5.0637,197.57,197.55,0.03487899]
[1755918401776,1.62,197.56,197.55,0.03487899]
[1755918405982,5.0637,197.57,197.55,0.03487899]
[1755918407379,1.62,197.56,197.55,0.03487899]
[1755918407776,1.62,197.6,197.55,0.03487899]
[1755918408080,1.62,197.58,197.55,0.03487899]
[1755918408274,35.4271,197.68,197.55,0.03487899]
[1755918408275,1.62,197.63,197.56,2.66]
[1755918408776,1.62,197.63,197.57,2.66]
[1755918410583,5.0626,197.62,197.57,2.66]
[1755918410781,6.6826,197.62,197.57,2.66]
[1755918411282,6.6826,197.62,197.58,0.03460821]
[1755918412273,5.0619,197.64,197.58,2.69460821]
[1755918412480,1.62,197.66,197.58,2.69460821]
[1755918412879,130.16,197.7,197.58,2.69460821]
[1755918413082,26.9234,197.69,197.58,2.69460821]
[1755918413274,1.62,197.68,197.58,2.66]
[1755918413480,6.6821,197.64,197.58,2.66]
[1755918413788,1.62,197.67,197.62,0.03415217]
[1755918414277,25.3047,197.68,197.62,0.03415217]
[1755918414473,1.62,197.64,197.62,0.03415217]
[1755918414681,6.6824,197.63,197.62,0.03415217]
[1755918415281,5.0624,197.63,197.62,0.03415217]
[1755918417184,6.6824,197.63,197.62,0.03415217]
[1755918419797,5.0633,197.59,197.52,2.66]
[1755918419994,1.62,197.62,197.52,2.66]
[1755918421087,5.063,197.6,197.52,2.66]
[1755918421291,5.063,197.6,197.53,5.0646]
[1755918421600,5.063,197.6,197.52,2.66]
[1755918421601,1.62,197.62,197.52,2.66]
[1755918421799,5.0638,197.57,197.52,2.66]
[1755918421998,5.0638,197.57,197.53,2.66]
[1755918423195,5.0641,197.56,197.53,2.66]
[1755918423399,1.6,197.63,197.51,2.89]
[1755918423599,5.0628,197.61,197.52,2.89]
[1755918424504,1.6,197.63,197.52,2.89]
[1755918425603,1.6,197.6,197.52,2.89]
[1755918426100,5.0644,197.55,197.52,2.89]
[1755918426498,1.6,197.59,197.48,7.9559]
[1755918426697,1.6,197.56,197.48,2.89]
[1755918427299,5.0651,197.52,197.48,2.89]
[1755918428807,25.3186,197.57,197.42,2.89]
[1755918428808,1.6,197.51,197.42,2.89]
[1755918429406,5.0661,197.48,197.42,2.89]
[1755918429607,1.6,197.63,197.48,2.89]
[1755918429808,1.6,197.63,197.52,7.05425238]
[1755918430008,1.6,197.63,197.53,2.89]
[1755918430404,5.0628,197.61,197.54,5.0642]
[1755918430804,1.6,197.63,197.53,2.89]
[1755918431007,5.0625,197.62,197.56,2.89]
[1755918431606,1.6,197.63,197.56,2.89]
[1755918432111,6.6623,197.63,197.56,2.89]
[1755918432802,0.03307715,197.61,197.57,2.89]
[1755918433500,0.03307715,197.61,197.58,2.89]
[1755918434699,0.03307715,197.61,197.53,2.89]
[1755918434900,1.64,197.76,197.6,2.89]
[1755918435101,5.0593,197.75,197.62,28.202]
[1755918435301,1.64,197.76,197.64,2.89]
[1755918435503,0.88035518,197.79,197.65,4.78768566]
[1755918435708,1.64,197.8,197.68,5.0606]
[1755918435903,1.64,197.8,197.69,2.89]
[1755918436308,1.64,197.8,197.72,0.0383418]
[1755918436505,1.64,197.83,197.73,2.89]
[1755918437300,6.6971,197.83,197.73,2.89]
[1755918437506,0.87990999,197.87,197.77,2.89]
[1755918437707,1.64,197.88,197.77,2.89]
[1755918437904,26.919,197.88,197.77,2.89]
[1755918438605,26.919,197.88,197.81,0.03310607]
[1755918438811,5.0561,197.87,197.81,0.03310607]
[1755918439306,1.64,197.88,197.81,0.03310607]
[1755918439909,1.64,197.87,197.81,0.03310607]
[1755918440514,1.64,197.82,197.81,0.03310607]
[1755918441115,6.6973,197.82,197.81,6.07e-06]
[1755918441319,6.6973,197.82,197.71,2.89]
[1755918441320,1.64,197.8,197.71,2.89]
[1755918442614,6.698,197.8,197.71,2.89]
[1755918443216,5.0572,197.83,197.71,2.89]
[1755918443717,1.64,197.85,197.71,2.89]
[1755918443913,5.0568,197.84,197.73,2.89]
[1755918444514,5.0579,197.8,197.73,2.89]
[1755918444710,1.64,197.8,197.68,343.17]
[1755918444919,25.2905,197.79,197.68,343.17]
[1755918445618,5.0582,197.79,197.69,2.89]
[1755918446113,1.64,197.8,197.69,2.89]
[1755918446814,5.0586,197.77,197.69,2.89]
[1755918447218,1.64,197.8,197.69,2.89]
[1755918447521,5.0583,197.78,197.69,2.89]
[1755918448823,5.0588,197.76,197.69,2.89]
[1755918450730,1.64,197.76,197.66,128.42]
[1755918451617,5.0597,197.73,197.66,128.42]
[1755918452124,1.64,197.82,197.67,2.89]
[1755918452323,1.64,197.82,197.7,2.89]
[1755918452929,6.6975,197.82,197.73,2.89]
[1755918453327,6.6975,197.82,197.76,0.03217905]
[1755918453526,0.0329512,197.79,197.76,0.03217905]
[1755918453825,0.0329512,197.79,197.77,2.67]
[1755918454027,0.0329512,197.79,197.78,2.67]
[1755918455125,5.0565,197.86,197.78,2.67]
[1755918455926,1.64,197.87,197.78,7.7281]
[1755918456531,1.64,197.87,197.81,0.03338688]
[1755918456731,1.64,197.88,197.81,0.03338688]
[1755918457630,25.2779,197.89,197.81,0.03338688]
[1755918457631,1.64,197.82,197.81,0.03338688]
[1755918458230,5.0572,197.83,197.81,0.03338688]
[1755918460033,6.6972,197.83,197.81,0.03338688]
[1755918461129,5.0566,197.85,197.81,0.03338688]
[1755918461334,1.64,197.88,197.81,0.03338688]
[1755918461730,128.36,197.91,197.81,0.03338688]
[1755918462428,5.0559,197.88,197.81,5.09078688]
[1755918465434,5.0553,197.9,197.83,5.057]
[1755918465639,5.0553,197.9,197.84,2.67]
[1755918466440,6.6953,197.9,197.85,2.70816797]
[1755918466945,1.64,197.86,197.85,0.03816797]
[1755918467436,5.0556,197.89,197.85,0.03816797]
[1755918467631,25.2731,197.93,197.85,0.03816797]
[1755918467632,1.64,197.88,197.85,0.03816797]
[1755918468341,6.6959,197.88,197.85,0.03816797]
[1755918469639,5.0559,197.88,197.85,2.70816797]
[1755918469939,26.9131,197.93,197.85,2.70816797]
[1755918469940,5.0553,197.9,197.85,2.70816797]
[1755918471340,5.0548,197.92,197.86,2.67]
[1755918471937,1.64,197.91,197.86,2.67]
[1755918472440,1.64,197.91,197.87,2.67]
[1755918472636,1.64,197.91,197.84,5.0566]
[1755918472942,1.64,197.94,197.87,0.03769414]
[1755918473543,25.271,197.95,197.87,0.03769414]
[1755918473544,6.6957,197.89,197.87,0.03769414]
[1755918473943,1.64,197.88,197.87,0.03769414]
[1755918474536,5.0557,197.89,197.87,0.03769414]
[1755918474844,5.055,197.91,197.87,0.03769414]
[1755918475148,5.055,197.91,197.87,2.70769414]
[1755918476035,6.695,197.91,197.87,2.70769414]
[1755918476241,6.695,197.91,197.87,0.03769414]
[1755918476546,1.64,197.9,197.87,0.03769414]
[1755918476743,5.0546,197.93,197.87,0.03769414]
[1755918478349,1.64,197.94,197.88,4.86333133]
[1755918478647,1.64,197.98,197.91,5.0549]
[1755918479248,1.64,197.98,197.92,4.87123501]
[1755918479547,1.64,197.97,197.93,0.03259796]
[1755918480049,5.0523,198.02,197.94,11.21064044]
[1755918480253,5.0523,198.02,197.95,4.86805206]
[1755918480545,5.0523,198.02,197.96,4.86805206]
[1755918480847,1.64,198.01,197.97,4.90161667]
[1755918481048,1.64,198.01,197.97,0.0343569]
[1755918481247,1.64,198.01,197.98,4.86659155]
[1755918481443,1.64,198.01,197.97,2.7043569]
[1755918481646,25.2559,198.07,197.97,2.7043569]
[1755918481647,1.64,198.06,197.97,2.7043569]
[1755918482341,1.64,198.04,197.97,0.0343569]
[1755918483845,5.0531,197.99,197.97,0.0343569]
[1755918484046,1.63,197.98,197.97,0.0343569]
[1755918485547,1.63,198.0,197.97,0.0343569]
[1755918485752,1.63,197.99,197.97,0.0343569]
[1755918486258,1.63,197.98,197.97,0.0343569]
[1755918487950,5.0532,197.99,197.97,0.0343569]
[1755918488151,6.6832,197.99,197.97,0.0343569]
[1755918488553,1.63,197.98,197.97,0.0343569]
[1755918494158,6.6846,197.93,197.85,339.88]
[1755918494553,1.63,197.93,197.85,339.88]
[1755918495557,5.0549,197.92,197.85,344.9364]
[1755918496958,1.63,197.91,197.81,2.77]
[1755918497354,1.63,197.89,197.81,2.77]
[1755918498660,5.0561,197.87,197.81,2.77]
[1755918498862,1.63,197.89,197.81,2.77]
[1755918499057,0.03277059,197.87,197.78,2.77]
[1755918499356,1.63,197.86,197.78,2.77]
[1755918500558,5.057,197.84,197.78,2.77]
[1755918501059,1.63,197.92,197.78,2.77]
[1755918501264,5.0556,197.89,197.78,2.77]
[1755918501557,1.63,197.92,197.74,128.14]